Workbook

Sheet CDS-Analytical
M1: … Premium Leg | V1: … Accrued Interest | AC1: … Protection Leg
B2: CDS Trade Parameters & Price | E2: Time, T | F2: Notional, N | G2: CreditSpread, s | H2: YearFraction, dt | I2: Coupon | J2: P(Survive), Q(T) | K2: DiscFact, P(t,T) | L2: PV | N2: Time, T | O2: Notional, N | P2: CreditSpread, s | Q2: YearFraction, dt | R2: Accrued Interest | S2: P(Default), Q(t)l(t) | T2: DiscFact, P(t,T) | U2: PV | W2: Time, T | X2: Notional, N | Y2: LossGivenDefault, LGD | Z2: P(Default), Q(t)l(t) | AA2: DiscFact, P(t,T) | AB2: PV
B3: BuyOrSellProtection | C3: BUY | E3: =YearFraction -> 0.25 | F3: =IF(E3>Maturity,"-",-Phi*Notional) -> -1000000 | G3: =IF(E3>Maturity,"-",Premium) -> 0.006 | H3: =IF(E3>Maturity,"-",YearFraction) -> 0.25 | I3: =IF(E3>Maturity,"-",F3*G3*H3) -> -1500 | J3: =IF(E3>Maturity,"-",EXP(-HazardRate*E3)) -> 0.9975031224 | K3: =IF(E3>Maturity,"-",EXP(-ZeroRate*E3)) -> 0.9953607945 | L3: =IF(E3>Maturity,"-",I3*J3*K3) -> -1489.313251 | N3: =YearFraction -> 0.25 | O3: =IF(N3>Maturity,"-",-Phi*Notional) -> -1000000 | P3: =IF(N3>Maturity,"-",Premium) -> 0.006 | Q3: =IF(N3>Maturity,"-",YearFraction/2) -> 0.125 | R3: =IF(N3>Maturity,"-",O3*P3*Q3) -> -750 | S3: =IF(N3>Maturity,"-",1-EXP(-HazardRate*N3)) -> 0.002496877603 | T3: =IF(N3>Maturity,"-",EXP(-ZeroRate*N3)) -> 0.9953607945 | U3: =IF(N3>Maturity,"-",R3*S3*T3) -> -1.863970556 | W3: =YearFraction -> 0.25 | X3: =IF(W3>Maturity,"-",Phi*Notional) -> 1000000 | Y3: =IF(W3>Maturity,"-",Phi*Notional*(1-RecoveryRate)) -> 600000 | Z3: =IF(W3>Maturity,"-",1-EXP(-HazardRate*W3)) -> 0.002496877603 | AA3: =IF(W3>Maturity,"-",EXP(-ZeroRate*W3)) -> 0.9953607945 | AB3: =IF(W3>Maturity,"-",Y3*Z3*AA3) -> 1491.176445
B4: BuySellndicator, j | C4: =IF(UPPER(C3)="BUY",1,-1) -> 1 | E4: =E3+YearFraction -> 0.5 | F4: -1000000 | G4: 0.006 | H4: 0.25 | I4: =IF(E4>Maturity,"-",F4*G4*H4) -> -1500 | J4: 0.9950124792 | K4: 0.9907431113 | L4: -1478.702639 | N4: =N3+YearFraction -> 0.5 | O4: -1000000 | P4: 0.006 | Q4: 0.125 | R4: -750 | S4: =IF(N4>Maturity,"-",EXP(-HazardRate*N3)-EXP(-HazardRate*N4)) -> 0.002490643205 | T4: 0.9907431113 | U4: -1.850690698 | W4: =W3+YearFraction -> 0.5 | X4: 1000000 | Y4: 600000 | Z4: =IF(W4>Maturity,"-",EXP(-HazardRate*W3)-EXP(-HazardRate*W4)) -> 0.002490643205 | AA4: 0.9907431113 | AB4: 1480.552559
B5: Notional, N | C5: 1000000 | E5: 0.75 | F5: -1000000 | G5: 0.006 | H5: 0.25 | I5: -1500 | J5: 0.9925280548 | K5: 0.9861468504 | L5: -1468.167623 | N5: 0.75 | O5: -1000000 | P5: 0.006 | Q5: 0.125 | R5: -750 | S5: 0.002484424374 | T5: 0.9861468504 | U5: -1.837505453 | W5: 0.75 | X5: 1000000 | Y5: 600000 | Z5: 0.002484424374 | AA5: 0.9861468504 | AB5: 1470.004363
B6: HazardRate, l | C6: 0.01 | E6: 1 | F6: -1000000 | G6: 0.006 | H6: 0.25 | I6: -1500 | J6: 0.9900498337 | K6: 0.9815719125 | L6: -1457.707663 | N6: 1 | O6: -1000000 | P6: 0.006 | Q6: 0.125 | R6: -750 | S6: 0.00247822107 | T6: 0.9815719125 | U6: -1.824414146 | W6: 1 | X6: 1000000 | Y6: 600000 | Z6: 0.00247822107 | AA6: 0.9815719125 | AB6: 1459.531317
B7: RecoveryRate, R | C7: 0.4 | E7: 1.25 | F7: -1000000 | G7: 0.006 | H7: 0.25 | I7: -1500 | J7: 0.9875778005 | K7: 0.9770181987 | L7: -1447.322226 | N7: 1.25 | O7: -1000000 | P7: 0.006 | Q7: 0.125 | R7: -750 | S7: 0.002472033255 | T7: 0.9770181987 | U7: -1.811416109 | W7: 1.25 | X7: 1000000 | Y7: 600000 | Z7: 0.002472033255 | AA7: 0.9770181987 | AB7: 1449.132887
B8: CreditSpread, s | C8: 0.006 | E8: 1.5 | F8: -1000000 | G8: 0.006 | H8: 0.25 | I8: -1500 | J8: 0.9851119396 | K8: 0.9724856105 | L8: -1437.010779 | N8: 1.5 | O8: -1000000 | P8: 0.006 | Q8: 0.125 | R8: -750 | S8: 0.002465860891 | T8: 0.9724856105 | U8: -1.798510675 | W8: 1.5 | X8: 1000000 | Y8: 600000 | Z8: 0.002465860891 | AA8: 0.9724856105 | AB8: 1438.80854
B9: PremiumFrequency | C9: QUARTERLY | E9: 1.75 | F9: -1000000 | G9: 0.006 | H9: 0.25 | I9: -1500 | J9: 0.9826522357 | K9: 0.9679740499 | L9: -1426.772796 | N9: 1.75 | O9: -1000000 | P9: 0.006 | Q9: 0.125 | R9: -750 | S9: 0.002459703938 | T9: 0.9679740499 | U9: -1.785697187 | W9: 1.75 | X9: 1000000 | Y9: 600000 | Z9: 0.002459703938 | AA9: 0.9679740499 | AB9: 1428.557749
B10: PremiumYearFraction, Dt | C10: =IF(Frequency="ANNUAL",1,IF(Frequency="SEMI-ANNUAL",0.5,0.25)) -> 0.25 | E10: 2 | F10: -1000000 | G10: 0.006 | H10: 0.25 | I10: -1500 | J10: 0.9801986733 | K10: 0.9634834194 | L10: -1416.607754 | N10: 2 | O10: -1000000 | P10: 0.006 | Q10: 0.125 | R10: -750 | S10: 0.002453562358 | T10: 0.9634834194 | U10: -1.772974988 | W10: 2 | X10: 1000000 | Y10: 600000 | Z10: 0.002453562358 | AA10: 0.9634834194 | AB10: 1418.37999
B11: Maturity, years | C11: 5 | E11: =E10+YearFraction -> 2.25 | F11: -1000000 | G11: 0.006 | H11: 0.25 | I11: -1500 | J11: 0.9777512372 | K11: 0.9590136218 | L11: -1406.515133 | N11: =N10+YearFraction -> 2.25 | O11: -1000000 | P11: 0.006 | Q11: 0.125 | R11: -750 | S11: 0.002447436113 | T11: 0.9590136218 | U11: -1.760343428 | W11: =W10+YearFraction -> 2.25 | X11: 1000000 | Y11: 600000 | Z11: 0.002447436113 | AA11: 0.9590136218 | AB11: 1408.274743
B12: ZeroRate, z | C12: 0.0186 | E12: 2.5 | F12: -1000000 | G12: 0.006 | H12: 0.25 | I12: -1500 | J12: 0.975309912 | K12: 0.9545645606 | L12: -1396.494416 | N12: 2.5 | O12: -1000000 | P12: 0.006 | Q12: 0.125 | R12: -750 | S12: 0.002441325165 | T12: 0.9545645606 | U12: -1.747801863 | W12: 2.5 | X12: 1000000 | Y12: 600000 | Z12: 0.002441325165 | AA12: 0.9545645606 | AB12: 1398.24149
E13: 2.75 | F13: -1000000 | G13: 0.006 | H13: 0.25 | I13: -1500 | J13: 0.9728746826 | K13: 0.9501361394 | L13: -1386.545093 | N13: 2.75 | O13: -1000000 | P13: 0.006 | Q13: 0.125 | R13: -750 | S13: 0.002435229475 | T13: 0.9501361394 | U13: -1.735349649 | W13: 2.75 | X13: 1000000 | Y13: 600000 | Z13: 0.002435229475 | AA13: 0.9501361394 | AB13: 1388.279719
B14: Present Value (PV) | E14: 3 | F14: -1000000 | G14: 0.006 | H14: 0.25 | I14: -1500 | J14: 0.9704455335 | K14: 0.9457282626 | L14: -1376.666653 | N14: 3 | O14: -1000000 | P14: 0.006 | Q14: 0.125 | R14: -750 | S14: 0.002429149005 | T14: 0.9457282626 | U14: -1.722986151 | W14: 3 | X14: 1000000 | Y14: 600000 | Z14: 0.002429149005 | AA14: 0.9457282626 | AB14: 1378.388921
B15: CreditDefaultSwap | C15: =SUM(C16:C18) -> -0.01452537497 | E15: 3.25 | F15: -1000000 | G15: 0.006 | H15: 0.25 | I15: -1500 | J15: 0.9680224498 | K15: 0.9413408349 | L15: -1366.858592 | N15: 3.25 | O15: -1000000 | P15: 0.006 | Q15: 0.125 | R15: -750 | S15: 0.002423083717 | T15: 0.9413408349 | U15: -1.710710737 | W15: 3.25 | X15: 1000000 | Y15: 600000 | Z15: 0.002423083717 | AA15: 0.9413408349 | AB15: 1368.56859
B16: PremiumLeg | C16: =PremiumLegTotalPV -> -27853.87648 | E16: 3.5 | F16: -1000000 | G16: 0.006 | H16: 0.25 | I16: -1500 | J16: 0.9656054163 | K16: 0.9369737613 | L16: -1357.120408 | N16: 3.5 | O16: -1000000 | P16: 0.006 | Q16: 0.125 | R16: -750 | S16: 0.002417033574 | T16: 0.9369737613 | U16: -1.698522779 | W16: 3.5 | X16: 1000000 | Y16: 600000 | Z16: 0.002417033574 | AA16: 0.9369737613 | AB16: 1358.818223
B17: AccruedInterest | C17: =AccruedInterestTotalPV -> -34.86090357 | E17: 3.75 | F17: -1000000 | G17: 0.006 | H17: 0.25 | I17: -1500 | J17: 0.9631944177 | K17: 0.9326269475 | L17: -1347.451604 | N17: 3.75 | O17: -1000000 | P17: 0.006 | Q17: 0.125 | R17: -750 | S17: 0.002410998537 | T17: 0.9326269475 | U17: -1.686421654 | W17: 3.75 | X17: 1000000 | Y17: 600000 | Z17: 0.002410998537 | AA17: 0.9326269475 | AB17: 1349.137323
B18: ProtectionLeg | C18: =ProtectionLegTotalPV -> 27888.72286 | E18: 4 | F18: -1000000 | G18: 0.006 | H18: 0.25 | I18: -1500 | J18: 0.9607894392 | K18: 0.9283002994 | L18: -1337.851686 | N18: 4 | O18: -1000000 | P18: 0.006 | Q18: 0.125 | R18: -750 | S18: 0.002404978568 | T18: 0.9283002994 | U18: -1.674406744 | W18: 4 | X18: 1000000 | Y18: 600000 | Z18: 0.002404978568 | AA18: 0.9283002994 | AB18: 1339.525395
E19: 4.25 | F19: -1000000 | G19: 0.006 | H19: 0.25 | I19: -1500 | J19: 0.9583904655 | K19: 0.9239937236 | L19: -1328.320162 | N19: 4.25 | O19: -1000000 | P19: 0.006 | Q19: 0.125 | R19: -750 | S19: 0.002398973631 | T19: 0.9239937236 | U19: -1.662477434 | W19: 4.25 | X19: 1000000 | Y19: 600000 | Z19: 0.002398973631 | AA19: 0.9239937236 | AB19: 1329.981947
B20: Par CDS Rate | E20: 4.5 | F20: -1000000 | G20: 0.006 | H20: 0.25 | I20: -1500 | J20: 0.9559974818 | K20: 0.9197071269 | L20: -1318.856546 | N20: 4.5 | O20: -1000000 | P20: 0.006 | Q20: 0.125 | R20: -750 | S20: 0.002392983688 | T20: 0.9197071269 | U20: -1.650633114 | W20: 4.5 | X20: 1000000 | Y20: 600000 | Z20: 0.002392983688 | AA20: 0.9197071269 | AB20: 1320.506491
B21: Par CDS Rate, p | C21: =C22/C23 -> 0.005999996871 | E21: 4.75 | F21: -1000000 | G21: 0.006 | H21: 0.25 | I21: -1500 | J21: 0.9536104731 | K21: 0.9154404165 | L21: -1309.460353 | N21: 4.75 | O21: -1000000 | P21: 0.006 | Q21: 0.125 | R21: -750 | S21: 0.0023870087 | T21: 0.9154404165 | U21: -1.638873179 | W21: 4.75 | X21: 1000000 | Y21: 600000 | Z21: 0.0023870087 | AA21: 0.9154404165 | AB21: 1311.098543
B22: ProtectionPV - AccruedInterest | C22: =-ProtectionLegTotalPV-AccruedInterestTotalPV -> -27853.86195 | E22: 5 | F22: -1000000 | G22: 0.006 | H22: 0.25 | I22: -1500 | J22: 0.9512294245 | K22: 0.9111935003 | L22: -1300.131103 | N22: 5 | O22: -1000000 | P22: 0.006 | Q22: 0.125 | R22: -750 | S22: 0.002381048632 | T22: 0.9111935003 | U22: -1.627197028 | W22: 5 | X22: 1000000 | Y22: 600000 | Z22: 0.002381048632 | AA22: 0.9111935003 | AB22: 1301.757622
B23: RiskyFixedAnnuity | C23: =C16/Premium -> -4642312.747 | E23: 5.25 | F23: - | G23: - | H23: - | I23: - | J23: - | K23: - | L23: - | N23: 5.25 | O23: =IF(N23>Maturity,"-",-Phi*Notional) -> - | P23: =IF(N23>Maturity,"-",Premium) -> - | Q23: =IF(N23>Maturity,"-",YearFraction/2) -> - | R23: =IF(N23>Maturity,"-",O23*P23*Q23) -> - | S23: =IF(N23>Maturity,"-",EXP(-HazardRate*N22)-EXP(-HazardRate*N23)) -> - | T23: - | U23: =IF(N23>Maturity,"-",R23*S23*T23) -> - | W23: 5.25 | X23: =IF(W23>Maturity,"-",Phi*Notional) -> - | Y23: =IF(W23>Maturity,"-",Phi*Notional*(1-RecoveryRate)) -> - | Z23: =IF(W23>Maturity,"-",EXP(-HazardRate*W22)-EXP(-HazardRate*W23)) -> - | AA23: - | AB23: =IF(W23>Maturity,"-",Y23*Z23*AA23) -> -
E24: 5.5 | F24: - | G24: - | H24: - | I24: - | J24: - | K24: - | L24: - | N24: 5.5 | O24: - | P24: - | Q24: - | R24: - | S24: - | T24: - | U24: - | W24: 5.5 | X24: - | Y24: - | Z24: - | AA24: - | AB24: -
E25: 5.75 | F25: - | G25: - | H25: - | I25: - | J25: - | K25: - | L25: - | N25: 5.75 | O25: - | P25: - | Q25: - | R25: - | S25: - | T25: - | U25: - | W25: 5.75 | X25: - | Y25: - | Z25: - | AA25: - | AB25: -
E26: 6 | F26: - | G26: - | H26: - | I26: - | J26: - | K26: - | L26: - | N26: 6 | O26: - | P26: - | Q26: - | R26: - | S26: - | T26: - | U26: - | W26: 6 | X26: - | Y26: - | Z26: - | AA26: - | AB26: -
E27: 6.25 | F27: - | G27: - | H27: - | I27: - | J27: - | K27: - | L27: - | N27: 6.25 | O27: - | P27: - | Q27: - | R27: - | S27: - | T27: - | U27: - | W27: 6.25 | X27: - | Y27: - | Z27: - | AA27: - | AB27: -
E28: 6.5 | F28: - | G28: - | H28: - | I28: - | J28: - | K28: - | L28: - | N28: 6.5 | O28: - | P28: - | Q28: - | R28: - | S28: - | T28: - | U28: - | W28: 6.5 | X28: - | Y28: - | Z28: - | AA28: - | AB28: -
E29: 6.75 | F29: - | G29: - | H29: - | I29: - | J29: - | K29: - | L29: - | N29: 6.75 | O29: - | P29: - | Q29: - | R29: - | S29: - | T29: - | U29: - | W29: 6.75 | X29: - | Y29: - | Z29: - | AA29: - | AB29: -
E30: 7 | F30: - | G30: - | H30: - | I30: - | J30: - | K30: - | L30: - | N30: 7 | O30: - | P30: - | Q30: - | R30: - | S30: - | T30: - | U30: - | W30: 7 | X30: - | Y30: - | Z30: - | AA30: - | AB30: -
E31: 7.25 | F31: - | G31: - | H31: - | I31: - | J31: - | K31: - | L31: - | N31: 7.25 | O31: - | P31: - | Q31: - | R31: - | S31: - | T31: - | U31: - | W31: 7.25 | X31: - | Y31: - | Z31: - | AA31: - | AB31: -
E32: 7.5 | F32: - | G32: - | H32: - | I32: - | J32: - | K32: - | L32: - | N32: 7.5 | O32: - | P32: - | Q32: - | R32: - | S32: - | T32: - | U32: - | W32: 7.5 | X32: - | Y32: - | Z32: - | AA32: - | AB32: -
E33: 7.75 | F33: - | G33: - | H33: - | I33: - | J33: - | K33: - | L33: - | N33: 7.75 | O33: - | P33: - | Q33: - | R33: - | S33: - | T33: - | U33: - | W33: 7.75 | X33: - | Y33: - | Z33: - | AA33: - | AB33: -
E34: 8 | F34: - | G34: - | H34: - | I34: - | J34: - | K34: - | L34: - | N34: 8 | O34: - | P34: - | Q34: - | R34: - | S34: - | T34: - | U34: - | W34: 8 | X34: - | Y34: - | Z34: - | AA34: - | AB34: -
E35: 8.25 | F35: - | G35: - | H35: - | I35: - | J35: - | K35: - | L35: - | N35: 8.25 | O35: - | P35: - | Q35: - | R35: - | S35: - | T35: - | U35: - | W35: 8.25 | X35: - | Y35: - | Z35: - | AA35: - | AB35: -
E36: 8.5 | F36: - | G36: - | H36: - | I36: - | J36: - | K36: - | L36: - | N36: 8.5 | O36: - | P36: - | Q36: - | R36: - | S36: - | T36: - | U36: - | W36: 8.5 | X36: - | Y36: - | Z36: - | AA36: - | AB36: -
E37: 8.75 | F37: - | G37: - | H37: - | I37: - | J37: - | K37: - | L37: - | N37: 8.75 | O37: - | P37: - | Q37: - | R37: - | S37: - | T37: - | U37: - | W37: 8.75 | X37: - | Y37: - | Z37: - | AA37: - | AB37: -
E38: 9 | F38: - | G38: - | H38: - | I38: - | J38: - | K38: - | L38: - | N38: 9 | O38: - | P38: - | Q38: - | R38: - | S38: - | T38: - | U38: - | W38: 9 | X38: - | Y38: - | Z38: - | AA38: - | AB38: -
E39: 9.25 | F39: - | G39: - | H39: - | I39: - | J39: - | K39: - | L39: - | N39: 9.25 | O39: - | P39: - | Q39: - | R39: - | S39: - | T39: - | U39: - | W39: 9.25 | X39: - | Y39: - | Z39: - | AA39: - | AB39: -
E40: 9.5 | F40: - | G40: - | H40: - | I40: - | J40: - | K40: - | L40: - | N40: 9.5 | O40: - | P40: - | Q40: - | R40: - | S40: - | T40: - | U40: - | W40: 9.5 | X40: - | Y40: - | Z40: - | AA40: - | AB40: -
E41: 9.75 | F41: - | G41: - | H41: - | I41: - | J41: - | K41: - | L41: - | N41: 9.75 | O41: - | P41: - | Q41: - | R41: - | S41: - | T41: - | U41: - | W41: 9.75 | X41: - | Y41: - | Z41: - | AA41: - | AB41: -
E42: 10 | F42: - | G42: - | H42: - | I42: - | J42: - | K42: - | L42: - | N42: 10 | O42: - | P42: - | Q42: - | R42: - | S42: - | T42: - | U42: - | W42: 10 | X42: - | Y42: - | Z42: - | AA42: - | AB42: -
E43: 10.25 | F43: - | G43: - | H43: - | I43: - | J43: - | K43: - | L43: - | N43: 10.25 | O43: - | P43: - | Q43: - | R43: - | S43: - | T43: - | U43: - | W43: 10.25 | X43: - | Y43: - | Z43: - | AA43: - | AB43: -
E44: 10.5 | F44: - | G44: - | H44: - | I44: - | J44: - | K44: - | L44: - | N44: 10.5 | O44: - | P44: - | Q44: - | R44: - | S44: - | T44: - | U44: - | W44: 10.5 | X44: - | Y44: - | Z44: - | AA44: - | AB44: -
L46: PremiumLegTotalPV | U46: AccruedInterestTotalPV | AB46: ProtectionLegTotalPV
L47: =SUM(L3:L44) -> -27853.87648 | U47: =SUM(U3:U44) -> -34.86090357 | AB47: =SUM(AB3:AB44) -> 27888.72286

Sheet CDS-MC
Y1: Antithetic Pair Calculation | AA1: … Premium Leg | AG1: Antithetic Pair Calculation | AJ1: … Accrued Interest | AN1: Pair-wise antithetic calculation | AQ1: … Protection Leg
H2: Analytical Solution | M2: CDS Trade Parameters & Price | P2: Time, T | Q2: Notional, N | R2: CreditSpread, s | S2: YearFraction, dt | T2: Coupon | U2: P(Survive), Q(T) | V2: DiscFact, P(t,T) | W2: PV | Y2: P(Survive), Q(T) | Z2: PV | AB2: Time, T | AC2: Notional, N | AD2: CreditSpread, s | AE2: YearFraction, dt | AF2: Accrued Interest | AG2: P(Default), Q(t)l(t) | AH2: DiscFact, P(t,T) | AI2: PV | AK2: Time, T | AL2: Notional, N | AM2: LossGivenDefault, LGD | AN2: P(Default), Q(t)l(t) | AO2: DiscFact, P(t,T) | AP2: PV
G3: Target | H3: ='CDS-Analytical'!C15 -> -0.01452537497 | I3: ='CDS-Analytical'!C16 -> -27853.87648 | J3: ='CDS-Analytical'!C17 -> -34.86090357 | K3: ='CDS-Analytical'!C18 -> 27888.72286 | M3: BuyOrSellProtection | N3: BUY | P3: =YearFraction -> 0.25 | Q3: =IF(P3>Maturity,"-",-Phi*Notional) -> -1000000 | R3: =IF(P3>Maturity,"-",Premium) -> 0.006 | S3: =IF(P3>Maturity,"-",YearFraction) -> 0.25 | T3: =IF(P3>Maturity,"-",Q3*R3*S3) -> -1500 | U3: =IF(P3>Maturity,"-",IF(DefaultTime>P3,1,0)) -> 1 | V3: =IF(P3>Maturity,"-",EXP(-ZeroRate*P3)) -> 0.9953607945 | W3: =IF(P3>Maturity,"-",T3*U3*V3) -> -1493.041192 | Y3: =IF(P3>Maturity,"-",IF(DefaultTime2>P3,1,0)) -> 1 | Z3: =IF(P3>Maturity,"-",T3*Y3*V3) -> -1493.041192 | AB3: =(DefaultTime+YearFraction)-MOD(DefaultTime+YearFraction,YearFraction) -> 109 | AC3: =-Phi*Notional -> -1000000 | AD3: =Premium -> 0.006 | AE3: =YearFraction/2 -> 0.125 | AF3: =AC3*AD3*AE3 -> -750 | AG3: =IF(DefaultTime<=Maturity,1,0) -> 0 | AH3: =EXP(-ZeroRate*AB3) -> 0.1316774378 | AI3: =AF3*AG3*AH3 -> 0 | AK3: =AB3 -> 109 | AL3: =Phi*Notional -> 1000000 | AM3: =Phi*Notional*(1-RecoveryRate) -> 600000 | AN3: =IF(DefaultTime<=Maturity,1,0) -> 0 | AO3: =EXP(-ZeroRate*AK3) -> 0.1316774378 | AP3: =AM3*AN3*AO3 -> 0
B4: HazardRate, l | C4: ='CDS-MC'!HazardRate -> 0.01 | D4: Antithetic Variate | G4: +/- | H4: =H8-H3 -> -907.5395163 | I4: =I8-I3 -> 19.19400846 | J4: =J8-J3 -> 1.159866739 | K4: =K8-K3 -> -927.8933915 | M4: BuySellndicator, j | N4: =IF(UPPER(N3)="BUY",1,-1) -> 1 | P4: =P3+YearFraction -> 0.5 | Q4: -1000000 | R4: 0.006 | S4: 0.25 | T4: =IF(P4>Maturity,"-",Q4*R4*S4) -> -1500 | U4: 1 | V4: 0.9907431113 | W4: -1486.114667 | Y4: 1 | Z4: -1486.114667 | AB4: =(DefaultTime2+YearFraction)-MOD(DefaultTime2+YearFraction,YearFraction) -> 17.5 | AC4: =-Phi*Notional -> -1000000 | AD4: =Premium -> 0.006 | AE4: =YearFraction/2 -> 0.125 | AF4: =AC4*AD4*AE4 -> -750 | AG4: =IF(DefaultTime2<=Maturity,1,0) -> 0 | AH4: =EXP(-ZeroRate*AB4) -> 0.7221661803 | AI4: =AF4*AG4*AH4 -> 0 | AK4: =AB4 -> 17.5 | AL4: =Phi*Notional -> 1000000 | AM4: =Phi*Notional*(1-RecoveryRate) -> 600000 | AN4: =IF(DefaultTime2<=Maturity,1,0) -> 0 | AO4: =EXP(-ZeroRate*AK4) -> 0.7221661803 | AP4: =AM4*AN4*AO4 -> 0
B5: Uniform Random Variate, u | C5: =RAND() -> 0.3364856579 | D5: =F14 -> 0.8413868643 | M5: Notional, N | N5: 1000000 | P5: 0.75 | Q5: -1000000 | R5: 0.006 | S5: 0.25 | T5: -1500 | U5: 1 | V5: 0.9861468504 | W5: -1479.220276 | Y5: 1 | Z5: -1479.220276
B6: Default Time, t (in years) | C6: =-LN(C5)/HazardRate -> 108.9199752 | D6: =G14 -> 17.27037196 | F6: Sample Average | H6: MC Solution | M6: HazardRate, l | N6: 0.01 | P6: 1 | Q6: -1000000 | R6: 0.006 | S6: 0.25 | T6: -1500 | U6: 1 | V6: 0.9815719125 | W6: -1472.357869 | Y6: 1 | Z6: -1472.357869
B7: No. Monte Carlo Simulations | C7: 1000 | F7: u | G7: t | H7: PV | I7: Premium | J7: Accrued | K7: Protection | M7: RecoveryRate, R | N7: 0.4 | P7: 1.25 | Q7: -1000000 | R7: 0.006 | S7: 0.25 | T7: -1500 | U7: 1 | V7: 0.9770181987 | W7: -1465.527298 | Y7: 1 | Z7: -1465.527298
B8: Show Iteration Steps | C8: FALSE | F8: =AVERAGE(F13:F1048576) -> 0.5 | G8: 99.01918444 | H8: -907.5540417 | I8: -27834.68247 | J8: -33.70103683 | K8: 26960.82947 | M8: CreditSpread, s | N8: 0.006 | P8: 1.5 | Q8: -1000000 | R8: 0.006 | S8: 0.25 | T8: -1500 | U8: 1 | V8: 0.9724856105 | W8: -1458.728416 | Y8: 1 | Z8: -1458.728416
B9: * We use anti-thetic pairs of uniform variates to control the variate sample mean | M9: PremiumFrequency | N9: QUARTERLY | P9: =P8+YearFraction -> 1.75 | Q9: -1000000 | R9: 0.006 | S9: 0.25 | T9: -1500 | U9: 1 | V9: 0.9679740499 | W9: -1451.961075 | Y9: 1 | Z9: -1451.961075
M10: PremiumYearFraction, Dt | N10: =IF(Frequency="ANNUAL",1,IF(Frequency="SEMI-ANNUAL",0.5,0.25)) -> 0.25 | P10: 2 | Q10: -1000000 | R10: 0.006 | S10: 0.25 | T10: -1500 | U10: 1 | V10: 0.9634834194 | W10: -1445.225129 | Y10: 1 | Z10: -1445.225129
B11: Survival Function | F11: MC Simulation | J11: MC Sim Count : | K11: =COUNTA(K13:K1048576) -> 1000 | M11: Maturity, years | N11: 5 | P11: =P10+YearFraction -> 2.25 | Q11: -1000000 | R11: 0.006 | S11: 0.25 | T11: -1500 | U11: 1 | V11: 0.9590136218 | W11: -1438.520433 | Y11: 1 | Z11: -1438.520433
B12: Time | C12: P(Survival) | D12: Q | F12: u | G12: t | H12: PV | I12: Premium | J12: Accrued | K12: Protection | M12: ZeroRate, z | N12: 0.0186 | P12: 2.5 | Q12: -1000000 | R12: 0.006 | S12: 0.25 | T12: -1500 | U12: 1 | V12: 0.9545645606 | W12: -1431.846841 | Y12: 1 | Z12: -1431.846841
B13: 0 | C13: =EXP(-'CDS-MC'!HazardRate*B13) -> 1 | D13: =NA() ->  | E13: 1 | F13: =RAND() -> 0.1586131357 | G13: =-LN(C5)/HazardRate -> 108.9199752 | H13: =SUM(I13:K13) -> -28580.70471 | I13: =PremiumLegTotalPV -> -28580.70471 | J13: =AccruedInterestTotalPV -> 0 | K13: =AP3 -> 0 | P13: 2.75 | Q13: -1000000 | R13: 0.006 | S13: 0.25 | T13: -1500 | U13: 1 | V13: 0.9501361394 | W13: -1425.204209 | Y13: 1 | Z13: -1425.204209
B14: =B13+0.25 -> 0.25 | C14: =EXP(-'CDS-MC'!HazardRate*B14) -> 0.9975031224 | D14: =IF(AND(DefaultTime<=B14,DefaultTime>B13),C14,NA()) ->  | E14: 2 | F14: =1-F13 -> 0.8413868643 | G14: =-LN(F14)/HazardRate -> 17.27037196 | H14: =SUM(I14:K14) -> -28580.70471 | I14: =PremiumLegTotalPV2 -> -28580.70471 | J14: =AccruedInterestTotalPV2 -> 0 | K14: =AP4 -> 0 | M14: Present Value (PV) | P14: 3 | Q14: -1000000 | R14: 0.006 | S14: 0.25 | T14: -1500 | U14: 1 | V14: 0.9457282626 | W14: -1418.592394 | Y14: 1 | Z14: -1418.592394
B15: 0.5 | C15: =EXP(-'CDS-MC'!HazardRate*B15) -> 0.9950124792 | E15: 3 | F15: 0.5053918514 | G15: 106.9895015 | H15: -28580.70471 | I15: -28580.70471 | J15: 0 | K15: 0 | M15: CreditDefaultSwap | N15: =H8 -> -907.5540417 | P15: 3.25 | Q15: -1000000 | R15: 0.006 | S15: 0.25 | T15: -1500 | U15: 1 | V15: 0.9413408349 | W15: -1412.011252 | Y15: 1 | Z15: -1412.011252
B16: 0.75 | C16: =EXP(-'CDS-MC'!HazardRate*B16) -> 0.9925280548 | E16: 4 | F16: 0.4946081486 | G16: 70.39894489 | H16: -28580.70471 | I16: -28580.70471 | J16: 0 | K16: 0 | M16: PremiumLeg | N16: =I8 -> -27834.68247 | P16: 3.5 | Q16: -1000000 | R16: 0.006 | S16: 0.25 | T16: -1500 | U16: 1 | V16: 0.9369737613 | W16: -1405.460642 | Y16: 1 | Z16: -1405.460642
B17: 1 | C17: =EXP(-'CDS-MC'!HazardRate*B17) -> 0.9900498337 | E17: 5 | F17: 0.8103224837 | G17: 5.157575411 | H17: -28580.70471 | I17: -28580.70471 | J17: 0 | K17: 0 | M17: AccruedInterest | N17: =J8 -> -33.70103683 | P17: 3.75 | Q17: -1000000 | R17: 0.006 | S17: 0.25 | T17: -1500 | U17: 1 | V17: 0.9326269475 | W17: -1398.940421 | Y17: 1 | Z17: -1398.940421
B18: 1.25 | C18: =EXP(-'CDS-MC'!HazardRate*B18) -> 0.9875778005 | E18: 6 | F18: 0.1896775163 | G18: 166.2429932 | H18: -28580.70471 | I18: -28580.70471 | J18: 0 | K18: 0 | M18: ProtectionLeg | N18: =K8 -> 26960.82947 | P18: 4 | Q18: -1000000 | R18: 0.006 | S18: 0.25 | T18: -1500 | U18: 1 | V18: 0.9283002994 | W18: -1392.450449 | Y18: 1 | Z18: -1392.450449
B19: 1.5 | C19: =EXP(-'CDS-MC'!HazardRate*B19) -> 0.9851119396 | E19: 7 | F19: 0.823752662 | G19: 173.1141678 | H19: -28580.70471 | I19: -28580.70471 | J19: 0 | K19: 0 | P19: 4.25 | Q19: -1000000 | R19: 0.006 | S19: 0.25 | T19: -1500 | U19: 1 | V19: 0.9239937236 | W19: -1385.990585 | Y19: 1 | Z19: -1385.990585
B20: 1.75 | C20: =EXP(-'CDS-MC'!HazardRate*B20) -> 0.9826522357 | E20: 8 | F20: 0.176247338 | G20: 173.5866941 | H20: -28580.70471 | I20: -28580.70471 | J20: 0 | K20: 0 | M20: Par CDS Rate | P20: 4.5 | Q20: -1000000 | R20: 0.006 | S20: 0.25 | T20: -1500 | U20: 1 | V20: 0.9197071269 | W20: -1379.56069 | Y20: 1 | Z20: -1379.56069
B21: 2 | C21: =EXP(-'CDS-MC'!HazardRate*B21) -> 0.9801986733 | E21: 9 | F21: 0.7439386508 | G21: 162.7703114 | H21: -28580.70471 | I21: -28580.70471 | J21: 0 | K21: 0 | M21: Par CDS Rate, p | N21: =N22/N23 -> 0 | P21: 4.75 | Q21: -1000000 | R21: 0.006 | S21: 0.25 | T21: -1500 | U21: 1 | V21: 0.9154404165 | W21: -1373.160625 | Y21: 1 | Z21: -1373.160625
B22: 2.25 | C22: =EXP(-'CDS-MC'!HazardRate*B22) -> 0.9777512372 | E22: 10 | F22: 0.2560613492 | G22: 136.2338218 | H22: -28580.70471 | I22: -28580.70471 | J22: 0 | K22: 0 | M22: ProtectionPV - AccruedInterest | N22: =-ProtectionLegTotalPV-AccruedInterestTotalPV -> 0 | P22: 5 | Q22: -1000000 | R22: 0.006 | S22: 0.25 | T22: -1500 | U22: 1 | V22: 0.9111935003 | W22: -1366.79025 | Y22: 1 | Z22: -1366.79025
B23: 2.5 | C23: =EXP(-'CDS-MC'!HazardRate*B23) -> 0.975309912 | E23: 11 | F23: 0.286622901 | G23: 279.1681656 | H23: -28580.70471 | I23: -28580.70471 | J23: 0 | K23: 0 | M23: RiskyFixedAnnuity | N23: =N16/Premium -> -4639113.745 | P23: 5.25 | Q23: - | R23: - | S23: - | T23: - | U23: - | V23: - | W23: - | Y23: - | Z23: -
B24: 2.75 | C24: =EXP(-'CDS-MC'!HazardRate*B24) -> 0.9728746826 | E24: 12 | F24: 0.713377099 | G24: 33.77451078 | H24: -28580.70471 | I24: -28580.70471 | J24: 0 | K24: 0 | P24: 5.5 | Q24: - | R24: - | S24: - | T24: - | U24: - | V24: - | W24: - | Y24: - | Z24: -
B25: 3 | C25: =EXP(-'CDS-MC'!HazardRate*B25) -> 0.9704455335 | E25: 13 | F25: 0.5703006453 | G25: 31.84639038 | H25: -28580.70471 | I25: -28580.70471 | J25: 0 | K25: 0 | P25: 5.75 | Q25: - | R25: - | S25: - | T25: - | U25: - | V25: - | W25: - | Y25: - | Z25: -
B26: 3.25 | C26: =EXP(-'CDS-MC'!HazardRate*B26) -> 0.9680224498 | E26: 14 | F26: 0.4296993547 | G26: 84.466949 | H26: -28580.70471 | I26: -28580.70471 | J26: 0 | K26: 0 | P26: 6 | Q26: - | R26: - | S26: - | T26: - | U26: - | V26: - | W26: - | Y26: - | Z26: -
B27: 3.5 | C27: =EXP(-'CDS-MC'!HazardRate*B27) -> 0.9656054163 | E27: 15 | F27: 0.4941031366 | G27: 28.50036359 | H27: -28580.70471 | I27: -28580.70471 | J27: 0 | K27: 0 | P27: 6.25 | Q27: - | R27: - | S27: - | T27: - | U27: - | V27: - | W27: - | Y27: - | Z27: -
B28: 3.75 | C28: =EXP(-'CDS-MC'!HazardRate*B28) -> 0.9631944177 | E28: 16 | F28: 0.5058968634 | G28: 68.14224577 | H28: -28580.70471 | I28: -28580.70471 | J28: 0 | K28: 0 | P28: 6.5 | Q28: - | R28: - | S28: - | T28: - | U28: - | V28: - | W28: - | Y28: - | Z28: -
B29: 4 | C29: =EXP(-'CDS-MC'!HazardRate*B29) -> 0.9607894392 | E29: 17 | F29: 0.2937800784 | G29: 13.93791933 | H29: -28580.70471 | I29: -28580.70471 | J29: 0 | K29: 0 | P29: 6.75 | Q29: - | R29: - | S29: - | T29: - | U29: - | V29: - | W29: - | Y29: - | Z29: -
B30: 4.25 | C30: =EXP(-'CDS-MC'!HazardRate*B30) -> 0.9583904655 | E30: 18 | F30: 0.7062199216 | G30: 34.78285863 | H30: -28580.70471 | I30: -28580.70471 | J30: 0 | K30: 0 | P30: 7 | Q30: - | R30: - | S30: - | T30: - | U30: - | V30: - | W30: - | Y30: - | Z30: -
B31: 4.5 | C31: =EXP(-'CDS-MC'!HazardRate*B31) -> 0.9559974818 | E31: 19 | F31: 0.8314242511 | G31: 91.86917839 | H31: -28580.70471 | I31: -28580.70471 | J31: 0 | K31: 0 | P31: 7.25 | Q31: - | R31: - | S31: - | T31: - | U31: - | V31: - | W31: - | Y31: - | Z31: -
B32: 4.75 | C32: =EXP(-'CDS-MC'!HazardRate*B32) -> 0.9536104731 | E32: 20 | F32: 0.1685757489 | G32: 178.0370082 | H32: -28580.70471 | I32: -28580.70471 | J32: 0 | K32: 0 | P32: 7.5 | Q32: - | R32: - | S32: - | T32: - | U32: - | V32: - | W32: - | Y32: - | Z32: -
B33: 5 | C33: =EXP(-'CDS-MC'!HazardRate*B33) -> 0.9512294245 | E33: 21 | F33: 0.6795824718 | G33: 89.13934721 | H33: -28580.70471 | I33: -28580.70471 | J33: 0 | K33: 0 | P33: 7.75 | Q33: - | R33: - | S33: - | T33: - | U33: - | V33: - | W33: - | Y33: - | Z33: -
B34: 5.25 | C34: =EXP(-'CDS-MC'!HazardRate*B34) -> 0.9488543211 | E34: 22 | F34: 0.3204175282 | G34: 113.8130358 | H34: -28580.70471 | I34: -28580.70471 | J34: 0 | K34: 0 | P34: 8 | Q34: - | R34: - | S34: - | T34: - | U34: - | V34: - | W34: - | Y34: - | Z34: -
B35: 5.5 | C35: =EXP(-'CDS-MC'!HazardRate*B35) -> 0.946485148 | E35: 23 | F35: 0.7320701096 | G35: 150.7373088 | H35: -28580.70471 | I35: -28580.70471 | J35: 0 | K35: 0 | P35: 8.25 | Q35: - | R35: - | S35: - | T35: - | U35: - | V35: - | W35: - | Y35: - | Z35: -
B36: 5.75 | C36: =EXP(-'CDS-MC'!HazardRate*B36) -> 0.9441218904 | E36: 24 | F36: 0.2679298904 | G36: 131.7029936 | H36: -28580.70471 | I36: -28580.70471 | J36: 0 | K36: 0 | P36: 8.5 | Q36: - | R36: - | S36: - | T36: - | U36: - | V36: - | W36: - | Y36: - | Z36: -
B37: 6 | C37: =EXP(-'CDS-MC'!HazardRate*B37) -> 0.9417645336 | E37: 25 | F37: 0.9036491145 | G37: 36.89123284 | H37: -28580.70471 | I37: -28580.70471 | J37: 0 | K37: 0 | P37: 8.75 | Q37: - | R37: - | S37: - | T37: - | U37: - | V37: - | W37: - | Y37: - | Z37: -
B38: 6.25 | C38: =EXP(-'CDS-MC'!HazardRate*B38) -> 0.9394130628 | E38: 26 | F38: 0.0963508855 | G38: 233.9758694 | H38: -28580.70471 | I38: -28580.70471 | J38: 0 | K38: 0 | P38: 9 | Q38: - | R38: - | S38: - | T38: - | U38: - | V38: - | W38: - | Y38: - | Z38: -
B39: 6.5 | C39: =EXP(-'CDS-MC'!HazardRate*B39) -> 0.9370674634 | E39: 27 | F39: 0.3860200201 | G39: 87.60908669 | H39: -28580.70471 | I39: -28580.70471 | J39: 0 | K39: 0 | P39: 9.25 | Q39: - | R39: - | S39: - | T39: - | U39: - | V39: - | W39: - | Y39: - | Z39: -
B40: 6.75 | C40: =EXP(-'CDS-MC'!HazardRate*B40) -> 0.9347277206 | E40: 28 | F40: 0.6139799799 | G40: 48.77929575 | H40: -28580.70471 | I40: -28580.70471 | J40: 0 | K40: 0 | P40: 9.5 | Q40: - | R40: - | S40: - | T40: - | U40: - | V40: - | W40: - | Y40: - | Z40: -
B41: 7 | C41: =EXP(-'CDS-MC'!HazardRate*B41) -> 0.9323938199 | E41: 29 | F41: 0.9335047308 | G41: 186.7952983 | H41: -28580.70471 | I41: -28580.70471 | J41: 0 | K41: 0 | P41: 9.75 | Q41: - | R41: - | S41: - | T41: - | U41: - | V41: - | W41: - | Y41: - | Z41: -
B42: 7.25 | C42: =EXP(-'CDS-MC'!HazardRate*B42) -> 0.9300657467 | E42: 30 | F42: 0.06649526922 | G42: 271.0624473 | H42: -28580.70471 | I42: -28580.70471 | J42: 0 | K42: 0 | P42: 10 | Q42: - | R42: - | S42: - | T42: - | U42: - | V42: - | W42: - | Y42: - | Z42: -
B43: 7.5 | C43: =EXP(-'CDS-MC'!HazardRate*B43) -> 0.9277434863 | E43: 31 | F43: 0.1910261811 | G43: 60.79618265 | H43: -28580.70471 | I43: -28580.70471 | J43: 0 | K43: 0 | P43: 10.25 | Q43: - | R43: - | S43: - | T43: - | U43: - | V43: - | W43: - | Y43: - | Z43: -
B44: 7.75 | C44: =EXP(-'CDS-MC'!HazardRate*B44) -> 0.9254270244 | E44: 32 | F44: 0.8089738189 | G44: 21.19887248 | H44: -28580.70471 | I44: -28580.70471 | J44: 0 | K44: 0 | P44: 10.5 | Q44: - | R44: - | S44: - | T44: - | U44: - | V44: - | W44: - | Y44: - | Z44: -
B45: 8 | C45: =EXP(-'CDS-MC'!HazardRate*B45) -> 0.9231163464 | E45: 33 | F45: 0.5081008642 | G45: 35.92815359 | H45: -28580.70471 | I45: -28580.70471 | J45: 0 | K45: 0
B46: =B45+0.25 -> 8.25 | C46: =EXP(-'CDS-MC'!HazardRate*B46) -> 0.9208114379 | D46: =IF(AND(DefaultTime<=B46,DefaultTime>B45),C46,NA()) ->  | E46: 34 | F46: 0.4918991358 | G46: 70.94815921 | H46: -28580.70471 | I46: -28580.70471 | J46: 0 | K46: 0 | W46: PremiumLegTotalPV | Z46: PremiumLegTotalPV
B47: 8.5 | C47: =EXP(-'CDS-MC'!HazardRate*B47) -> 0.9185122844 | E47: 35 | F47: 0.4413696763 | G47: 53.43853305 | H47: -28580.70471 | I47: -28580.70471 | J47: 0 | K47: 0 | W47: =SUM(W3:W44) -> -28580.70471 | Z47: =SUM(Z3:Z44) -> -28580.70471
B48: 8.75 | C48: =EXP(-'CDS-MC'!HazardRate*B48) -> 0.9162188717 | E48: 36 | F48: 0.5586303237 | G48: 58.22673418 | H48: -28580.70471 | I48: -28580.70471 | J48: 0 | K48: 0 | Z48: Antithetic Pair
B49: 9 | C49: =EXP(-'CDS-MC'!HazardRate*B49) -> 0.9139311853 | E49: 37 | F49: 0.2770114017 | G49: 15.59786785 | H49: -28580.70471 | I49: -28580.70471 | J49: 0 | K49: 0
B50: 9.25 | C50: =EXP(-'CDS-MC'!HazardRate*B50) -> 0.911649211 | E50: 38 | F50: 0.7229885983 | G50: 32.43618269 | H50: -28580.70471 | I50: -28580.70471 | J50: 0 | K50: 0
B51: 9.5 | C51: =EXP(-'CDS-MC'!HazardRate*B51) -> 0.9093729345 | E51: 39 | F51: 0.4077199392 | G51: 51.21994729 | H51: -28580.70471 | I51: -28580.70471 | J51: 0 | K51: 0
B52: 9.75 | C52: =EXP(-'CDS-MC'!HazardRate*B52) -> 0.9071023416 | E52: 40 | F52: 0.5922800608 | G52: 52.37756802 | H52: -28580.70471 | I52: -28580.70471 | J52: 0 | K52: 0
B53: 10 | C53: =EXP(-'CDS-MC'!HazardRate*B53) -> 0.904837418 | E53: 41 | F53: 0.4410860433 | G53: 331.6376553 | H53: -28580.70471 | I53: -28580.70471 | J53: 0 | K53: 0
B54: 10.25 | C54: =EXP(-'CDS-MC'!HazardRate*B54) -> 0.9025781498 | E54: 42 | F54: 0.5589139567 | G54: 58.17597412 | H54: -28580.70471 | I54: -28580.70471 | J54: 0 | K54: 0
B55: 10.5 | C55: =EXP(-'CDS-MC'!HazardRate*B55) -> 0.9003245226 | E55: 43 | F55: 0.7274127776 | G55: 3.295354178 | H55: 542603.1754 | I55: -18878.35105 | J55: -702.730321 | K55: 562184.2568
B56: 10.75 | C56: =EXP(-'CDS-MC'!HazardRate*B56) -> 0.8980765225 | E56: 44 | F56: 0.2725872224 | G56: 129.9796634 | H56: -28580.70471 | I56: -28580.70471 | J56: 0 | K56: 0
B57: 11 | C57: =EXP(-'CDS-MC'!HazardRate*B57) -> 0.8958341353 | E57: 45 | F57: 0.3852535966 | G57: 102.63547 | H57: -28580.70471 | I57: -28580.70471 | J57: 0 | K57: 0
B58: 11.25 | C58: =EXP(-'CDS-MC'!HazardRate*B58) -> 0.8935973471 | E58: 46 | F58: 0.6147464034 | G58: 48.65454484 | H58: -28580.70471 | I58: -28580.70471 | J58: 0 | K58: 0
B59: 11.5 | C59: =EXP(-'CDS-MC'!HazardRate*B59) -> 0.8913661439 | E59: 47 | F59: 0.3329178796 | G59: 2.483030986 | H59: 558832.1166 | I59: -13190.69635 | J59: -715.9234204 | K59: 572738.7363
B60: 11.75 | C60: =EXP(-'CDS-MC'!HazardRate*B60) -> 0.8891405117 | E60: 48 | F60: 0.6670821204 | G60: 40.48421216 | H60: -28580.70471 | I60: -28580.70471 | J60: 0 | K60: 0
B61: 12 | C61: =EXP(-'CDS-MC'!HazardRate*B61) -> 0.8869204367 | E61: 49 | F61: 0.3894280887 | G61: 117.4318504 | H61: -28580.70471 | I61: -28580.70471 | J61: 0 | K61: 0
B62: 12.25 | C62: =EXP(-'CDS-MC'!HazardRate*B62) -> 0.8847059049 | E62: 50 | F62: 0.6105719113 | G62: 49.33592015 | H62: -28580.70471 | I62: -28580.70471 | J62: 0 | K62: 0
B63: 12.5 | C63: =EXP(-'CDS-MC'!HazardRate*B63) -> 0.8824969026 | E63: 51 | F63: 0.5207589374 | G63: 66.13602848 | H63: -28580.70471 | I63: -28580.70471 | J63: 0 | K63: 0
B64: 12.75 | C64: =EXP(-'CDS-MC'!HazardRate*B64) -> 0.8802934158 | E64: 52 | F64: 0.4792410626 | G64: 73.5551546 | H64: -28580.70471 | I64: -28580.70471 | J64: 0 | K64: 0
B65: 13 | C65: =EXP(-'CDS-MC'!HazardRate*B65) -> 0.8780954309 | E65: 53 | F65: 0.0009320127491 | G65: 120.2415175 | H65: -28580.70471 | I65: -28580.70471 | J65: 0 | K65: 0
B66: 13.25 | C66: =EXP(-'CDS-MC'!HazardRate*B66) -> 0.8759029341 | E66: 54 | F66: 0.9990679873 | G66: 0.0932447343 | H66: 596469.9561 | I66: 0 | J66: -746.5205959 | K66: 597216.4767
B67: 13.5 | C67: =EXP(-'CDS-MC'!HazardRate*B67) -> 0.8737159117 | E67: 55 | F67: 0.9966264537 | G67: 79.53330606 | H67: -28580.70471 | I67: -28580.70471 | J67: 0 | K67: 0
B68: 13.75 | C68: =EXP(-'CDS-MC'!HazardRate*B68) -> 0.87153435 | E68: 56 | F68: 0.003373546297 | G68: 569.1790774 | H68: -28580.70471 | I68: -28580.70471 | J68: 0 | K68: 0
B69: 14 | C69: =EXP(-'CDS-MC'!HazardRate*B69) -> 0.8693582354 | E69: 57 | F69: 0.9127180151 | G69: 90.79945718 | H69: -28580.70471 | I69: -28580.70471 | J69: 0 | K69: 0
B70: 14.25 | C70: =EXP(-'CDS-MC'!HazardRate*B70) -> 0.8671875543 | E70: 58 | F70: 0.08728198488 | G70: 243.8611196 | H70: -28580.70471 | I70: -28580.70471 | J70: 0 | K70: 0
B71: 14.5 | C71: =EXP(-'CDS-MC'!HazardRate*B71) -> 0.8650222931 | E71: 59 | F71: 0.0209038569 | G71: 20.80513917 | H71: -28580.70471 | I71: -28580.70471 | J71: 0 | K71: 0
B72: 14.75 | C72: =EXP(-'CDS-MC'!HazardRate*B72) -> 0.8628624383 | E72: 60 | F72: 0.9790961431 | G72: 2.112543586 | H72: 562936.737 | I72: -11752.17592 | J72: -719.2602164 | K72: 575408.1731
B73: 15 | C73: =EXP(-'CDS-MC'!HazardRate*B73) -> 0.8607079764 | E73: 61 | F73: 0.7156785751 | G73: 10.79483452 | H73: -28580.70471 | I73: -28580.70471 | J73: 0 | K73: 0
B74: 15.25 | C74: =EXP(-'CDS-MC'!HazardRate*B74) -> 0.858558894 | E74: 62 | F74: 0.2843214249 | G74: 125.7649903 | H74: -28580.70471 | I74: -28580.70471 | J74: 0 | K74: 0
B75: 15.5 | C75: =EXP(-'CDS-MC'!HazardRate*B75) -> 0.8564151775 | E75: 63 | F75: 0.7575236792 | G75: 11.36498916 | H75: -28580.70471 | I75: -28580.70471 | J75: 0 | K75: 0
B76: 15.75 | C76: =EXP(-'CDS-MC'!HazardRate*B76) -> 0.8542768136 | E76: 64 | F76: 0.2424763208 | G76: 141.685122 | H76: -28580.70471 | I76: -28580.70471 | J76: 0 | K76: 0
B77: 16 | C77: =EXP(-'CDS-MC'!HazardRate*B77) -> 0.852143789 | E77: 65 | F77: 0.9059699546 | G77: 18.07788826 | H77: -28580.70471 | I77: -28580.70471 | J77: 0 | K77: 0
B78: =B77+0.25 -> 16.25 | C78: =EXP(-'CDS-MC'!HazardRate*B78) -> 0.8500160902 | D78: =IF(AND(DefaultTime<=B78,DefaultTime>B77),C78,NA()) ->  | E78: 66 | F78: 0.09403004538 | G78: 236.4140916 | H78: -28580.70471 | I78: -28580.70471 | J78: 0 | K78: 0
B79: 16.5 | C79: =EXP(-'CDS-MC'!HazardRate*B79) -> 0.8478937041 | E79: 67 | F79: 0.3335195809 | G79: 118.8242359 | H79: -28580.70471 | I79: -28580.70471 | J79: 0 | K79: 0
B80: 16.75 | C80: =EXP(-'CDS-MC'!HazardRate*B80) -> 0.8457766173 | E80: 68 | F80: 0.6664804191 | G80: 40.57445185 | H80: -28580.70471 | I80: -28580.70471 | J80: 0 | K80: 0
B81: 17 | C81: =EXP(-'CDS-MC'!HazardRate*B81) -> 0.8436648166 | E81: 69 | F81: 0.7490945648 | G81: 219.3085595 | H81: -28580.70471 | I81: -28580.70471 | J81: 0 | K81: 0
B82: 17.25 | C82: =EXP(-'CDS-MC'!HazardRate*B82) -> 0.8415582888 | E82: 70 | F82: 0.2509054352 | G82: 138.2679163 | H82: -28580.70471 | I82: -28580.70471 | J82: 0 | K82: 0
B83: 17.5 | C83: =EXP(-'CDS-MC'!HazardRate*B83) -> 0.8394570208 | E83: 71 | F83: 0.9409514455 | G83: 267.4852238 | H83: -28580.70471 | I83: -28580.70471 | J83: 0 | K83: 0
B84: 17.75 | C84: =EXP(-'CDS-MC'!HazardRate*B84) -> 0.8373609993 | E84: 72 | F84: 0.05904855454 | G84: 282.9395215 | H84: -28580.70471 | I84: -28580.70471 | J84: 0 | K84: 0
B85: 18 | C85: =EXP(-'CDS-MC'!HazardRate*B85) -> 0.8352702114 | E85: 73 | F85: 0.8529868447 | G85: 54.81816389 | H85: -28580.70471 | I85: -28580.70471 | J85: 0 | K85: 0
B86: 18.25 | C86: =EXP(-'CDS-MC'!HazardRate*B86) -> 0.8331846439 | E86: 74 | F86: 0.1470131553 | G86: 191.7233204 | H86: -28580.70471 | I86: -28580.70471 | J86: 0 | K86: 0
B87: 18.5 | C87: =EXP(-'CDS-MC'!HazardRate*B87) -> 0.8311042839 | E87: 75 | F87: 0.4311072953 | G87: 81.35130832 | H87: -28580.70471 | I87: -28580.70471 | J87: 0 | K87: 0
B88: 18.75 | C88: =EXP(-'CDS-MC'!HazardRate*B88) -> 0.8290291182 | E88: 76 | F88: 0.5688927047 | G88: 56.40634308 | H88: -28580.70471 | I88: -28580.70471 | J88: 0 | K88: 0
B89: 19 | C89: =EXP(-'CDS-MC'!HazardRate*B89) -> 0.8269591339 | E89: 77 | F89: 0.4751016558 | G89: 27.71048813 | H89: -28580.70471 | I89: -28580.70471 | J89: 0 | K89: 0
B90: 19.25 | C90: =EXP(-'CDS-MC'!HazardRate*B90) -> 0.8248943182 | E90: 78 | F90: 0.5248983442 | G90: 64.45506653 | H90: -28580.70471 | I90: -28580.70471 | J90: 0 | K90: 0
B91: 19.5 | C91: =EXP(-'CDS-MC'!HazardRate*B91) -> 0.8228346581 | E91: 79 | F91: 0.9681123784 | G91: 125.4202383 | H91: -28580.70471 | I91: -28580.70471 | J91: 0 | K91: 0
B92: 19.75 | C92: =EXP(-'CDS-MC'!HazardRate*B92) -> 0.8207801406 | E92: 80 | F92: 0.03188762156 | G92: 344.5537383 | H92: -28580.70471 | I92: -28580.70471 | J92: 0 | K92: 0
B93: 20 | C93: =EXP(-'CDS-MC'!HazardRate*B93) -> 0.8187307531 | E93: 81 | F93: 0.6721057428 | G93: 0.2605182475 | H93: 592209.7682 | I93: -1493.041192 | J93: -743.0573334 | K93: 594445.8668
B94: 20.25 | C94: =EXP(-'CDS-MC'!HazardRate*B94) -> 0.8166864826 | E94: 82 | F94: 0.3278942572 | G94: 111.5064109 | H94: -28580.70471 | I94: -28580.70471 | J94: 0 | K94: 0
B95: 20.5 | C95: =EXP(-'CDS-MC'!HazardRate*B95) -> 0.8146473164 | E95: 83 | F95: 0.6525385146 | G95: 4.099450145 | H95: 530628.0363 | I95: -23075.20256 | J95: -692.9952927 | K95: 554396.2342
B96: 20.75 | C96: =EXP(-'CDS-MC'!HazardRate*B96) -> 0.8126132418 | E96: 84 | F96: 0.3474614854 | G96: 105.7101453 | H96: -28580.70471 | I96: -28580.70471 | J96: 0 | K96: 0
B97: 21 | C97: =EXP(-'CDS-MC'!HazardRate*B97) -> 0.810584246 | E97: 85 | F97: 0.1754288964 | G97: 91.6177659 | H97: -28580.70471 | I97: -28580.70471 | J97: 0 | K97: 0
B98: 21.25 | C98: =EXP(-'CDS-MC'!HazardRate*B98) -> 0.8085603163 | E98: 86 | F98: 0.8245711036 | G98: 19.28919023 | H98: -28580.70471 | I98: -28580.70471 | J98: 0 | K98: 0
B99: 21.5 | C99: =EXP(-'CDS-MC'!HazardRate*B99) -> 0.8065414402 | E99: 87 | F99: 0.5580942004 | G99: 5.837116978 | H99: -28580.70471 | I99: -28580.70471 | J99: 0 | K99: 0
B100: 21.75 | C100: =EXP(-'CDS-MC'!HazardRate*B100) -> 0.8045276049 | E100: 88 | F100: 0.4419057996 | G100: 81.66585427 | H100: -28580.70471 | I100: -28580.70471 | J100: 0 | K100: 0
B101: 22 | C101: =EXP(-'CDS-MC'!HazardRate*B101) -> 0.802518798 | E101: 89 | F101: 0.5043686816 | G101: 71.69428946 | H101: -28580.70471 | I101: -28580.70471 | J101: 0 | K101: 0
B102: 22.25 | C102: =EXP(-'CDS-MC'!HazardRate*B102) -> 0.8005150068 | E102: 90 | F102: 0.4956313184 | G102: 70.19229383 | H102: -28580.70471 | I102: -28580.70471 | J102: 0 | K102: 0
B103: 22.5 | C103: =EXP(-'CDS-MC'!HazardRate*B103) -> 0.7985162188 | E103: 91 | F103: 0.2687681806 | G103: 23.44194054 | H103: -28580.70471 | I103: -28580.70471 | J103: 0 | K103: 0
B104: 22.75 | C104: =EXP(-'CDS-MC'!HazardRate*B104) -> 0.7965224215 | E104: 92 | F104: 0.7312318194 | G104: 31.3024743 | H104: -28580.70471 | I104: -28580.70471 | J104: 0 | K104: 0
B105: 23 | C105: =EXP(-'CDS-MC'!HazardRate*B105) -> 0.7945336025 | E105: 93 | F105: 0.002906787916 | G105: 77.16283606 | H105: -28580.70471 | I105: -28580.70471 | J105: 0 | K105: 0
B106: 23.25 | C106: =EXP(-'CDS-MC'!HazardRate*B106) -> 0.7925497493 | E106: 94 | F106: 0.9970932121 | G106: 0.2911020829 | H106: 592209.7682 | I106: -1493.041192 | J106: -743.0573334 | K106: 594445.8668
B107: 23.5 | C107: =EXP(-'CDS-MC'!HazardRate*B107) -> 0.7905708496 | E107: 95 | F107: 0.7810456231 | G107: 91.44066868 | H107: -28580.70471 | I107: -28580.70471 | J107: 0 | K107: 0
B108: 23.75 | C108: =EXP(-'CDS-MC'!HazardRate*B108) -> 0.788596891 | E108: 96 | F108: 0.2189543769 | G108: 151.8891895 | H108: -28580.70471 | I108: -28580.70471 | J108: 0 | K108: 0
B109: 24 | C109: =EXP(-'CDS-MC'!HazardRate*B109) -> 0.7866278611 | E109: 97 | F109: 0.9186572711 | G109: 61.6066987 | H109: -28580.70471 | I109: -28580.70471 | J109: 0 | K109: 0
B110: =B109+0.25 -> 24.25 | C110: =EXP(-'CDS-MC'!HazardRate*B110) -> 0.7846637476 | D110: =IF(AND(DefaultTime<=B110,DefaultTime>B109),C110,NA()) ->  | E110: 98 | F110: 0.08134272886 | G110: 250.908383 | H110: -28580.70471 | I110: -28580.70471 | J110: 0 | K110: 0
B111: 24.5 | C111: =EXP(-'CDS-MC'!HazardRate*B111) -> 0.7827045382 | E111: 99 | F111: 0.2252182724 | G111: 11.50299843 | H111: -28580.70471 | I111: -28580.70471 | J111: 0 | K111: 0
B112: 24.75 | C112: =EXP(-'CDS-MC'!HazardRate*B112) -> 0.7807502208 | E112: 100 | F112: 0.7747817276 | G112: 25.51739312 | H112: -28580.70471 | I112: -28580.70471 | J112: 0 | K112: 0
B113: 25 | C113: =EXP(-'CDS-MC'!HazardRate*B113) -> 0.7788007831 | E113: 101 | F113: 0.9092933261 | G113: 41.2062744 | H113: -28580.70471 | I113: -28580.70471 | J113: 0 | K113: 0
B114: 25.25 | C114: =EXP(-'CDS-MC'!HazardRate*B114) -> 0.7768562128 | E114: 102 | F114: 0.0907066739 | G114: 240.0124342 | H114: -28580.70471 | I114: -28580.70471 | J114: 0 | K114: 0
B115: 25.5 | C115: =EXP(-'CDS-MC'!HazardRate*B115) -> 0.774916498 | E115: 103 | F115: 0.2406412166 | G115: 10.93557594 | H115: -28580.70471 | I115: -28580.70471 | J115: 0 | K115: 0
B116: 25.75 | C116: =EXP(-'CDS-MC'!HazardRate*B116) -> 0.7729816263 | E116: 104 | F116: 0.7593587834 | G116: 27.52809079 | H116: -28580.70471 | I116: -28580.70471 | J116: 0 | K116: 0
B117: 26 | C117: =EXP(-'CDS-MC'!HazardRate*B117) -> 0.7710515858 | E117: 105 | F117: 0.6519341867 | G117: 82.0485342 | H117: -28580.70471 | I117: -28580.70471 | J117: 0 | K117: 0
B118: 26.25 | C118: =EXP(-'CDS-MC'!HazardRate*B118) -> 0.7691263644 | E118: 106 | F118: 0.3480658133 | G118: 105.5363698 | H118: -28580.70471 | I118: -28580.70471 | J118: 0 | K118: 0
B119: 26.5 | C119: =EXP(-'CDS-MC'!HazardRate*B119) -> 0.76720595 | E119: 107 | F119: 0.054342391 | G119: 23.30053991 | H119: -28580.70471 | I119: -28580.70471 | J119: 0 | K119: 0
B120: 26.75 | C120: =EXP(-'CDS-MC'!HazardRate*B120) -> 0.7652903306 | E120: 108 | F120: 0.945657609 | G120: 5.587471096 | H120: -28580.70471 | I120: -28580.70471 | J120: 0 | K120: 0
B121: 27 | C121: =EXP(-'CDS-MC'!HazardRate*B121) -> 0.7633794943 | E121: 109 | F121: 0.1965961487 | G121: 303.9020423 | H121: -28580.70471 | I121: -28580.70471 | J121: 0 | K121: 0
B122: 27.25 | C122: =EXP(-'CDS-MC'!HazardRate*B122) -> 0.7614734292 | E122: 110 | F122: 0.8034038513 | G122: 21.88977634 | H122: -28580.70471 | I122: -28580.70471 | J122: 0 | K122: 0
B123: 27.5 | C123: =EXP(-'CDS-MC'!HazardRate*B123) -> 0.7595721232 | E123: 111 | F123: 0.5024059599 | G123: 21.64917536 | H123: -28580.70471 | I123: -28580.70471 | J123: 0 | K123: 0
B124: 27.75 | C124: =EXP(-'CDS-MC'!HazardRate*B124) -> 0.7576755646 | E124: 112 | F124: 0.4975940401 | G124: 69.7970715 | H124: -28580.70471 | I124: -28580.70471 | J124: 0 | K124: 0
B125: 28 | C125: =EXP(-'CDS-MC'!HazardRate*B125) -> 0.7557837415 | E125: 113 | F125: 0.4414302117 | G125: 62.70800711 | H125: -28580.70471 | I125: -28580.70471 | J125: 0 | K125: 0
B126: 28.25 | C126: =EXP(-'CDS-MC'!HazardRate*B126) -> 0.753896642 | E126: 114 | F126: 0.5585697883 | G126: 58.23757116 | H126: -28580.70471 | I126: -28580.70471 | J126: 0 | K126: 0
B127: 28.5 | C127: =EXP(-'CDS-MC'!HazardRate*B127) -> 0.7520142543 | E127: 115 | F127: 0.4379197859 | G127: 36.42286576 | H127: -28580.70471 | I127: -28580.70471 | J127: 0 | K127: 0
B128: 28.75 | C128: =EXP(-'CDS-MC'!HazardRate*B128) -> 0.7501365668 | E128: 116 | F128: 0.5620802141 | G128: 57.61107096 | H128: -28580.70471 | I128: -28580.70471 | J128: 0 | K128: 0
B129: 29 | C129: =EXP(-'CDS-MC'!HazardRate*B129) -> 0.7482635676 | E129: 117 | F129: 0.9177695514 | G129: 278.5978478 | H129: -28580.70471 | I129: -28580.70471 | J129: 0 | K129: 0
B130: 29.25 | C130: =EXP(-'CDS-MC'!HazardRate*B130) -> 0.746395245 | E130: 118 | F130: 0.08223044864 | G130: 249.8229624 | H130: -28580.70471 | I130: -28580.70471 | J130: 0 | K130: 0
B131: 29.5 | C131: =EXP(-'CDS-MC'!HazardRate*B131) -> 0.7445315875 | E131: 119 | F131: 0.6012479473 | G131: 8.914228228 | H131: -28580.70471 | I131: -28580.70471 | J131: 0 | K131: 0
B132: 29.75 | C132: =EXP(-'CDS-MC'!HazardRate*B132) -> 0.7426725832 | E132: 120 | F132: 0.3987520527 | G132: 91.94154771 | H132: -28580.70471 | I132: -28580.70471 | J132: 0 | K132: 0
B133: 30 | C133: =EXP(-'CDS-MC'!HazardRate*B133) -> 0.7408182207 | E133: 121 | F133: 0.6727024411 | G133: 120.5948035 | H133: -28580.70471 | I133: -28580.70471 | J133: 0 | K133: 0
E134: 122 | F134: 0.3272975589 | G134: 111.6885556 | H134: -28580.70471 | I134: -28580.70471 | J134: 0 | K134: 0
E135: 123 | F135: 0.1854637356 | G135: 85.96322364 | H135: -28580.70471 | I135: -28580.70471 | J135: 0 | K135: 0
E136: 124 | F136: 0.8145362644 | G136: 20.51363284 | H136: -28580.70471 | I136: -28580.70471 | J136: 0 | K136: 0
E137: 125 | F137: 0.6091668202 | G137: 322.8053821 | H137: -28580.70471 | I137: -28580.70471 | J137: 0 | K137: 0
E138: 126 | F138: 0.3908331798 | G138: 93.94744601 | H138: -28580.70471 | I138: -28580.70471 | J138: 0 | K138: 0
E139: 127 | F139: 0.6239671764 | G139: 25.70111968 | H139: -28580.70471 | I139: -28580.70471 | J139: 0 | K139: 0
E140: 128 | F140: 0.3760328236 | G140: 97.80788426 | H140: -28580.70471 | I140: -28580.70471 | J140: 0 | K140: 0
E141: 129 | F141: 0.9834507615 | G141: 56.98861184 | H141: -28580.70471 | I141: -28580.70471 | J141: 0 | K141: 0
E142: 130 | F142: 0.01654923854 | G142: 410.1415188 | H142: -28580.70471 | I142: -28580.70471 | J142: 0 | K142: 0
E143: 131 | F143: 0.1793007886 | G143: 226.1942937 | H143: -28580.70471 | I143: -28580.70471 | J143: 0 | K143: 0
E144: 132 | F144: 0.8206992114 | G144: 19.75986053 | H144: -28580.70471 | I144: -28580.70471 | J144: 0 | K144: 0
E145: 133 | F145: 0.03535633115 | G145: 114.5010954 | H145: -28580.70471 | I145: -28580.70471 | J145: 0 | K145: 0
E146: 134 | F146: 0.9646436688 | G146: 3.599650092 | H146: 538592.8866 | I146: -20283.81169 | J146: -699.4702106 | K146: 559576.1685
E147: 135 | F147: 0.6029824466 | G147: 72.22082369 | H147: -28580.70471 | I147: -28580.70471 | J147: 0 | K147: 0
E148: 136 | F148: 0.3970175534 | G148: 92.37747841 | H148: -28580.70471 | I148: -28580.70471 | J148: 0 | K148: 0
E149: 137 | F149: 0.7510639327 | G149: 201.9709187 | H149: -28580.70471 | I149: -28580.70471 | J149: 0 | K149: 0
E150: 138 | F150: 0.2489360673 | G150: 139.0559173 | H150: -28580.70471 | I150: -28580.70471 | J150: 0 | K150: 0
E151: 139 | F151: 0.6789943324 | G151: 92.82766701 | H151: -28580.70471 | I151: -28580.70471 | J151: 0 | K151: 0
E152: 140 | F152: 0.3210056676 | G152: 113.62965 | H152: -28580.70471 | I152: -28580.70471 | J152: 0 | K152: 0
E153: 141 | F153: 0.7569749933 | G153: 17.93736461 | H153: -28580.70471 | I153: -28580.70471 | J153: 0 | K153: 0
E154: 142 | F154: 0.2430250067 | G154: 141.4590933 | H154: -28580.70471 | I154: -28580.70471 | J154: 0 | K154: 0
E155: 143 | F155: 0.5963351482 | G155: 2.338296691 | H155: 558832.1166 | I155: -13190.69635 | J155: -715.9234204 | K155: 572738.7363
E156: 144 | F156: 0.4036648518 | G156: 90.717032 | H156: -28580.70471 | I156: -28580.70471 | J156: 0 | K156: 0
E157: 145 | F157: 0.3296513264 | G157: 23.37355697 | H157: -28580.70471 | I157: -28580.70471 | J157: 0 | K157: 0
E158: 146 | F158: 0.6703486736 | G158: 39.99572936 | H158: -28580.70471 | I158: -28580.70471 | J158: 0 | K158: 0
E159: 147 | F159: 0.2129352763 | G159: 41.7305723 | H159: -28580.70471 | I159: -28580.70471 | J159: 0 | K159: 0
E160: 148 | F160: 0.7870647237 | G160: 23.94447929 | H160: -28580.70471 | I160: -28580.70471 | J160: 0 | K160: 0
E161: 149 | F161: 0.4233625943 | G161: 0.7982109482 | H161: 583748.5924 | I161: -4458.376134 | J161: -736.1789344 | K161: 588943.1475
E162: 150 | F162: 0.5766374057 | G162: 55.05416231 | H162: -28580.70471 | I162: -28580.70471 | J162: 0 | K162: 0
E163: 151 | F163: 0.6227986868 | G163: 496.4580407 | H163: -28580.70471 | I163: -28580.70471 | J163: 0 | K163: 0
E164: 152 | F164: 0.3772013132 | G164: 97.49762467 | H164: -28580.70471 | I164: -28580.70471 | J164: 0 | K164: 0
E165: 153 | F165: 0.5832281159 | G165: 32.43064101 | H165: -28580.70471 | I165: -28580.70471 | J165: 0 | K165: 0
E166: 154 | F166: 0.4167718841 | G166: 87.52162474 | H166: -28580.70471 | I166: -28580.70471 | J166: 0 | K166: 0
E167: 155 | F167: 0.163482603 | G167: 4.808238951 | H167: 518818.7906 | I167: -27213.91446 | J167: -683.3951252 | K167: 546716.1002
E168: 156 | F168: 0.836517397 | G168: 17.85079614 | H168: -28580.70471 | I168: -28580.70471 | J168: 0 | K168: 0
E169: 157 | F169: 0.6497347473 | G169: 1.862061719 | H169: 567060.4883 | I169: -10306.95079 | J169: -722.6125645 | K169: 578090.0516
E170: 158 | F170: 0.3502652527 | G170: 104.9064547 | H170: -28580.70471 | I170: -28580.70471 | J170: 0 | K170: 0
E171: 159 | F171: 0.670998829 | G171: 11.83466341 | H171: -28580.70471 | I171: -28580.70471 | J171: 0 | K171: 0
E172: 160 | F172: 0.329001171 | G172: 111.1693969 | H172: -28580.70471 | I172: -28580.70471 | J172: 0 | K172: 0
E173: 161 | F173: 0.8866017704 | G173: 2.981204405 | H173: 550679.914 | I173: -16047.7474 | J173: -709.296197 | K173: 567436.9576
E174: 162 | F174: 0.1133982296 | G174: 217.68495 | H174: -28580.70471 | I174: -28580.70471 | J174: 0 | K174: 0
E175: 163 | F175: 0.215441388 | G175: 12.69369766 | H175: -28580.70471 | I175: -28580.70471 | J175: 0 | K175: 0
E176: 164 | F176: 0.784558612 | G176: 24.2633997 | H176: -28580.70471 | I176: -28580.70471 | J176: 0 | K176: 0
E177: 165 | F177: 0.9318253714 | G177: 0.6414587314 | H177: 587969.3442 | I177: -2979.155859 | J177: -739.6101378 | K177: 591688.1102
E178: 166 | F178: 0.06817462858 | G178: 268.5682798 | H178: -28580.70471 | I178: -28580.70471 | J178: 0 | K178: 0
E179: 167 | F179: 0.0990202667 | G179: 10.43754436 | H179: -28580.70471 | I179: -28580.70471 | J179: 0 | K179: 0
E180: =E179+1 -> 168 | F180: 0.9009797333 | G180: 10.42725152 | H180: -28580.70471 | I180: -28580.70471 | J180: 0 | K180: 0
E181: 170 | F181: 0.7089241265 | G181: 223.6665209 | H181: -28580.70471 | I181: -28580.70471 | J181: 0 | K181: 0
E182: 171 | F182: 0.2910758735 | G182: 123.4171312 | H182: -28580.70471 | I182: -28580.70471 | J182: 0 | K182: 0
E183: 172 | F183: 0.098328168 | G183: 148.7000768 | H183: -28580.70471 | I183: -28580.70471 | J183: 0 | K183: 0
E184: 173 | F184: 0.901671832 | G184: 10.35046477 | H184: -28580.70471 | I184: -28580.70471 | J184: 0 | K184: 0
E185: 174 | F185: 0.6991910484 | G185: 37.99666476 | H185: -28580.70471 | I185: -28580.70471 | J185: 0 | K185: 0
E186: 175 | F186: 0.3008089516 | G186: 120.1279928 | H186: -28580.70471 | I186: -28580.70471 | J186: 0 | K186: 0
E187: 176 | F187: 0.3201856198 | G187: 70.62386951 | H187: -28580.70471 | I187: -28580.70471 | J187: 0 | K187: 0
E188: 177 | F188: 0.6798143802 | G188: 38.59354883 | H188: -28580.70471 | I188: -28580.70471 | J188: 0 | K188: 0
E189: 178 | F189: 0.3336390581 | G189: 18.08229142 | H189: -28580.70471 | I189: -28580.70471 | J189: 0 | K189: 0
E190: 179 | F190: 0.6663609419 | G190: 40.59238004 | H190: -28580.70471 | I190: -28580.70471 | J190: 0 | K190: 0
E191: 180 | F191: 0.7329975107 | G191: 25.33080842 | H191: -28580.70471 | I191: -28580.70471 | J191: 0 | K191: 0
E192: 181 | F192: 0.2670024893 | G192: 132.0497297 | H192: -28580.70471 | I192: -28580.70471 | J192: 0 | K192: 0
E193: 182 | F193: 0.3584915922 | G193: 59.32643648 | H193: -28580.70471 | I193: -28580.70471 | J193: 0 | K193: 0
E194: 183 | F194: 0.6415084078 | G194: 44.39329885 | H194: -28580.70471 | I194: -28580.70471 | J194: 0 | K194: 0
E195: 184 | F195: 0.2503118079 | G195: 124.185165 | H195: -28580.70471 | I195: -28580.70471 | J195: 0 | K195: 0
E196: 185 | F196: 0.7496881921 | G196: 28.80979027 | H196: -28580.70471 | I196: -28580.70471 | J196: 0 | K196: 0
E197: 186 | F197: 0.1153384421 | G197: 114.3396874 | H197: -28580.70471 | I197: -28580.70471 | J197: 0 | K197: 0
E198: 187 | F198: 0.8846615579 | G198: 12.25501275 | H198: -28580.70471 | I198: -28580.70471 | J198: 0 | K198: 0
E199: 188 | F199: 0.4461190891 | G199: 13.06526977 | H199: -28580.70471 | I199: -28580.70471 | J199: 0 | K199: 0
E200: 189 | F200: 0.5538809109 | G200: 59.08055776 | H200: -28580.70471 | I200: -28580.70471 | J200: 0 | K200: 0
... 812 more rows
